fUST/lending_fUST_20240406
["ID","MTS","AMOUNT","RATE_DAILY","PERIOD"]
[321671479,1712367997026,-2320.91010788,0.00031553,4]
[321671480,1712367997050,-2631.81074481,0.00031567,4]
[321671481,1712367997076,-151.0,0.00031567,2]
[321671482,1712367997101,-240.703174,0.00031567,2]
[321671483,1712367997125,-151.0,0.00031567,2]
[321671484,1712367997150,-151.0,0.00031567,2]
[321671485,1712367997174,-171.01674,0.00031595,2]
[321671486,1712367997199,-205.2263134,0.00032124,2]
[321671487,1712367997224,-157.73240537,0.00032208,2]
[321671488,1712367997250,-560.0,0.00032385,2]
[321671489,1712367997276,-783.38276155,0.00032547,6]
[321671490,1712367997302,-560.0,0.00033054,2]
[321671491,1712367997327,-456.79384156,0.0003319,2]
[321671492,1712367997351,-157.73240537,0.00033268,2]
[321671493,1712367997376,-157.73240537,0.00034327,2]
[321671494,1712367997402,-783.0,0.00034902,2]
[321671495,1712367997428,-783.38276155,0.00035006,7]
[321671496,1712367997453,-545.608049,0.00035078,2]
[321671497,1712367997479,-355.84423386,0.00035078,2]
[321671498,1712368002900,-189.76381514,0.00035078,2]
[321671499,1712368002926,-157.73240537,0.00035386,2]
[321671500,1712368002950,-277.744443,0.00035386,2]
[321671501,1712368002974,-176.948053,0.00035386,2]
[321671502,1712368003100,-1000.0,0.000358,2]
[321671503,1712368003125,-1000.0,0.000358,3]
[321671504,1712368003156,-1000.0,0.000358,5]
[321671505,1712368003182,-151.0,0.000358,2]
[321671506,1712368003206,-309.96079901,0.00035996,4]
[321671537,1712368231797,-584.92916469,0.00030596,4]
[321671538,1712368231807,-400.0,0.00030596,2]
[321671539,1712368231816,-14391.73735293,0.00030597,10]
[321671540,1712368231829,-299.55749358,0.000336,2]
[321671541,1712368231839,-560.0,0.00033655,2]
[321671542,1712368231848,-151.0,0.00036164,2]
[321671543,1712368231858,-169.166017,0.00036164,2]
[321671544,1712368231867,-167.704613,0.00036164,2]
[321671545,1712368231876,-182.0927381,0.00036164,2]
[321671547,1712368231886,-168.512181,0.00036164,2]
[321671549,1712368231895,-151.0,0.0003639,2]
[321671550,1712368231905,-151.0,0.00036445,2]
[321671551,1712368231914,-277.13595,0.00036519,2]
[321671553,1712368231922,-783.0,0.00037021,2]
[321671554,1712368231932,-283.48268843,0.00037439,4]
[321671555,1712368231941,-3463.58453808,0.00037439,4]
[321671556,1712368231951,-806.43115623,0.0003744,8]
[321671557,1712368231961,-1096.54941034,0.0003754,2]
[321671558,1712368231970,-545.608049,0.0003754,2]
[321671559,1712368231979,-545.608049,0.0003754,2]
[321671560,1712368231989,-15141.6623438,0.00037658,2]
[321671561,1712368231998,-151.0,0.00037658,2]
[321671562,1712368232008,-151.0,0.00037658,2]
[321671563,1712368232018,-158.102209,0.00037658,2]
[321671564,1712368232028,-545.608049,0.00037658,2]
[321671565,1712368232038,-545.608049,0.00037658,2]
[321671566,1712368232049,-456.79384156,0.0003819,2]
[321671567,1712368232059,-655.6924518,0.00038216,2]
[321671568,1712368232068,-202.5506203,0.0003869,2]
[321671569,1712368232080,-153.0,0.0003879,2]
[321671570,1712368232090,-391.0731801,0.00038822,2]
[321671571,1712368232099,-806.43115618,0.00038848,9]
[321671572,1712368232108,-319.40440648,0.00039,30]
[321671573,1712368232118,-153.0,0.00039096,2]
[321671574,1712368232127,-202.5506203,0.00039096,2]
[321671575,1712368232137,-153.0,0.00039096,2]
[321671576,1712368232147,-446.7790251,0.00039096,2]
[321671577,1712368232156,-201.4924572,0.00039096,2]
[321671578,1712368232166,-308.9314415,0.00039178,2]
[321671579,1712368232286,-155.6986578,0.00039452,2]
[321671580,1712368232298,-306.0,0.00039452,2]
[321671581,1712368232309,-302.53776426,0.00039639,15]
[321671582,1712368232318,-21538.50799145,0.0003964,4]
[321671583,1712368232330,-203.2653125,0.0003964,4]
[321671584,1712368232338,-151.0,0.0003964,2]
[321671585,1712368232348,-151.0,0.0003964,2]
[321671586,1712368232357,-545.608049,0.0003964,2]
[321671587,1712368232366,-545.608049,0.0003964,2]
[321671588,1712368232376,-153.0,0.00039918,2]
[321671589,1712368232386,-153.0,0.00039918,2]
[321671590,1712368232395,-460.95637272,0.00039999,31]
[321671591,1712368232405,-253.15688201,0.00039999,31]
[321671592,1712368232414,-500.0,0.00039999,31]
[321671593,1712368232424,-304.64482355,0.00039999,31]
[321671594,1712368232433,-4000.66004103,0.0004,14]
[321671595,1712368232442,-1340.68315415,0.0004,2]
[321671596,1712368232451,-3848.08452851,0.0004,120]
[321671597,1712368232460,-397.37243112,0.0004,120]
[321671598,1712368232469,-151.0,0.0004,2]
[321671599,1712368232479,-151.0,0.0004,2]
[321671600,1712368232488,-545.608049,0.0004,2]
[321671601,1712368232498,-545.608049,0.0004,2]
[321671602,1712368232507,-208.408,0.00040222,2]
[321671603,1712368232517,-806.43115618,0.00040256,9]
[321671604,1712368232526,-1097.0,0.00040723,3]
[321671605,1712368232535,-152.724681,0.0004075,2]
[321671606,1712368232545,-151.0,0.0004075,2]
[321671607,1712368232554,-545.608049,0.0004075,2]
[321671608,1712368232564,-545.608049,0.0004075,2]
[321671609,1712368232574,-151.0,0.0004075,2]
[321671610,1712368232583,-151.0,0.0004075,2]
[321671611,1712368232595,-154.98450155,0.0004075,4]
[321671612,1712368232605,-5822.3716978,0.0004075,4]
[321671613,1712368232616,-363.95382113,0.0004075,4]
[321671614,1712368232625,-155.39131219,0.0004075,4]
[321671615,1712368232635,-2082.73649172,0.0004075,4]
[321671616,1712368232645,-1603.23955311,0.0004075,4]
[321671617,1712368232655,-155.3645032,0.0004075,4]
[321671618,1712368232664,-1869.90417171,0.0004075,4]
[321671619,1712368232674,-258.30723884,0.0004075,4]
[321671620,1712368232684,-157.31572822,0.0004075,4]
[321671621,1712368232692,-104.36524883,0.00040751,4]
[321672062,1712368242919,-2826.27512523,0.00040751,4]
[321672063,1712368242929,-151.0,0.00040751,2]
[321672064,1712368242938,-545.608049,0.00040751,2]
[321672065,1712368242947,-545.608049,0.00040751,2]
[321672066,1712368242956,-202.17296299,0.00040753,4]
[321672067,1712368242966,-1060.13848245,0.00041,4]
[321672068,1712368242975,-153.0,0.00041014,2]
[321672069,1712368242985,-545.608049,0.00041095,2]
[321672070,1712368242994,-545.608049,0.00041095,2]
[321672071,1712368243003,-151.0,0.00041095,2]
[321672072,1712368243012,-1168.24040163,0.00041095,30]
[321672081,1712368476973,466.65348716,0.00028944,120]
[321672085,1712368609143,300.0,0.0002701,2]
[321672086,1712368696896,-584.92916469,0.00032052,4]
[321672087,1712368696923,-244.3486928,0.00032053,4]
[321672090,1712369200166,-227.3644657,0.00029953,2]
[321672091,1712369200299,-4.64009114,0.00029953,2]
[321672123,1712369431987,-423.51354494,0.00034851,4]
[321672133,1712369436653,-161.41561975,0.00034851,4]
[321672134,1712369436662,-161.14290492,0.00034852,2]
[321672135,1712369436671,-677.39374999,0.00034951,4]
[321672154,1712369437970,-1398.59644692,0.00034951,4]
[321672389,1712369443102,-3432.14382486,0.00034951,4]
[321672470,1712370638268,-3493.96314125,0.0003275,4]
[321672472,1712370638277,-161.14290492,0.00032751,2]
[321672474,1712370638286,-299.07516955,0.00032851,2]
[321672476,1712370638295,-161.14290492,0.00034007,2]
[321672478,1712370638305,-1746.8972013,0.000349,2]
[321672480,1712370638313,-400.0,0.00034999,2]
[321672482,1712370638323,-163.0,0.00034999,2]
[321672484,1712370638332,-595.7272905,0.00035,2]
[321672486,1712370638341,-9765.55971361,0.00035,5]
[321672488,1712370638350,-61.10106127,0.00035035,2]
[321672558,1712371252260,5000.0,0.00032,2]
[321672561,1712371281265,13100.0,0.00032,2]
[321672569,1712371550626,199.38344637,0.000299,2]
[321672572,1712371832341,-630.97882146,0.00032769,4]
[321672573,1712371832350,-745.65407704,0.0003277,4]
[321672574,1712371832360,-154.98450155,0.00032771,4]
[321672575,1712371832369,-188.09865874,0.00032795,2]
[321672576,1712371832378,-200.0,0.00034162,2]
[321672577,1712371832388,-368.4385086,0.00034278,2]
[321672578,1712371832399,-1291.6918415,0.00034278,2]
[321672579,1712371832409,-199.38344637,0.000349,2]
[321672580,1712371832419,-400.0,0.00035642,2]
[321672581,1712371832428,-400.0,0.00035642,2]
[321672582,1712371832437,-24900.0,0.00035643,2]
[321672583,1712371832446,-157.50344,0.00035654,2]
[321672584,1712371832455,-1447.43304746,0.00035748,2]
[321672585,1712371832464,-174.016991,0.00035748,2]
[321672586,1712371832472,-162.1316785,0.00035912,2]
[321672587,1712371832481,-171.01674,0.0003594,2]
[321672588,1712371832490,-869.48243312,0.0003599,2]
[321672590,1712371832499,-468.485219,0.00036161,120]
[321672592,1712371832509,-167.704613,0.00036164,2]
[321672594,1712371832518,-169.166017,0.00036164,2]
[321672596,1712371832527,-1260.52686053,0.00036208,2]
[321672598,1712371832536,-479.060617,0.00036277,2]
[321672600,1712371832545,-504.01947263,0.00036757,8]
[321672601,1712371832555,-635.4433462,0.00036857,2]
[321672603,1712371832564,-1260.52686053,0.00037331,2]
[321672605,1712371832573,-504.01947261,0.00038263,8]
[321672607,1712371832582,-154.1119477,0.00038356,2]
[321672609,1712371832592,-153.0,0.00038356,2]
[321672611,1712371832601,-504.00745843,0.00038387,2]
[321672613,1712371832610,-2024.45016478,0.00038388,4]
[321672614,1712371832620,-2870.61975471,0.00038388,4]
[321672616,1712371832629,-701.7109787,0.00038389,4]
[321672617,1712371832638,-461.70961394,0.00038453,15]
[321672618,1712371832647,-168.0,0.00038454,2]
[321672619,1712371832656,-1260.52686053,0.00038454,2]
[321672620,1712371832665,-306.0,0.0003863,2]
[321672621,1712371832674,-197.55273116,0.00039039,15]
[321672622,1712371832682,-344.84778152,0.00039039,15]
[321672623,1712371832691,-14177.43702561,0.0003904,2]
[321672641,1712371838333,-2263.86532112,0.0003904,2]
[321672642,1712371838440,-12300.71594549,0.0003904,2]
[321672643,1712371840643,-701.41535698,0.0003904,2]
[321672644,1712371840658,-2314.2758617,0.0003904,2]
[321672645,1712371840700,-4787.79166127,0.0003904,2]
[321672651,1712371846456,-920.97,0.0003904,2]
[321672662,1712372077940,22700.61655363,0.0002877,2]
[321672663,1712372078452,-12000.0,0.0002877,2]
[321672664,1712372078493,-12000.0,0.0002877,2]
[321672665,1712372078537,-747.62169516,0.0002877,2]
[321672668,1712372756418,284.71806313,0.0002667,2]
[321672715,1712373032618,-154.98450155,0.00030836,4]
[321672716,1712373032628,-243.02686363,0.00030836,4]
[321672717,1712373032638,-154.98450155,0.00030837,4]
[321672718,1712373032648,-109.52671727,0.00030837,4]
[321672719,1712373032661,-3402.6729596,0.00030837,4]
[321672720,1712373032674,-154.98450155,0.00030838,4]
[321672721,1712373032684,-2504.91891207,0.00030838,4]
[321672722,1712373032694,-157.50344,0.0003084,2]
[321672723,1712373032703,-5015.19497326,0.00030975,4]
[321672724,1712373032714,-2803.93667957,0.00030976,4]
[321672725,1712373032724,-161.14290492,0.00030978,2]
[321672726,1712373032734,-400.0,0.00031073,2]
[321672727,1712373032744,-1938.6276658,0.00031079,2]
[321672728,1712373032755,-1219.82682029,0.00031326,2]
[321672729,1712373032772,-24.01312991,0.00031326,2]
[321672730,1712373032782,-284.71806313,0.0003167,2]
[321672731,1712373032792,-161.14290492,0.00032932,2]
[321672732,1712373032802,-1343.38093184,0.00033724,2]
[321672955,1712373040766,-268.58464317,0.00033724,2]
[321673385,1712373046683,-50.41535683,0.00033724,2]
[321673386,1712373046693,-2846.24922552,0.00033724,2]
[321673399,1712373099118,-154.98450155,0.00031622,2]
[321673400,1712373099142,-211.13217215,0.00031623,4]
[321673401,1712373099166,-150.0,0.00031624,2]
[321673402,1712373119988,-283.79016332,0.00033722,4]
[321673403,1712373120015,-400.0,0.00033723,2]
[321673404,1712373120041,-19316.20983668,0.00033724,2]
[321673405,1712373127560,-400.0,0.00033723,2]
[321673406,1712373127586,-1394.16000596,0.00033724,2]
[321673407,1712373127610,-351.363914,0.00033852,120]
[321673408,1712373809598,263.522935,0.00032157,120]
[321673409,1712373811321,-2810.21193343,0.00031708,4]
[321673410,1712373811347,-1755.28412944,0.00031709,4]
[321673411,1712373811372,-288.48487785,0.0003171,4]
[321673412,1712373811397,-1190.52601268,0.00031711,4]
[321673413,1712373811580,-154.98450155,0.00031711,2]
[321673414,1712373811608,-900.70645769,0.00031721,2]
[321673415,1712373811635,-202.171108,0.00032293,2]
[321673416,1712373811661,-446.115659,0.00032719,2]
[321673417,1712373811686,-634.03532288,0.00033307,2]
[321673418,1712373811711,-546.31061627,0.00033623,2]
[321673419,1712373811736,-156.28207244,0.00033721,4]
[321673420,1712373811762,-400.0,0.00033721,2]
[321673421,1712373811788,-400.0,0.00033722,2]
[321673422,1712373811816,-500.0,0.00033723,2]
[321673423,1712373811842,-346.13770142,0.00033723,2]
[321673424,1712373811867,-1045.6,0.00033723,2]
[321673425,1712373811893,-162.99376709,0.00033723,2]
[321673426,1712373811917,-511.96439522,0.00033723,2]
[321673427,1712373811943,-500.0,0.00033723,2]
[321673428,1712373811970,-3630.83,0.00033723,2]
[321673429,1712373811997,-500.0,0.00033723,2]
[321673430,1712373812022,-2917.36144504,0.00033723,7]
[321673431,1712373827338,-217.84084201,0.00033,4]
[321673432,1712373827364,-1174.84194014,0.00033722,4]
[321673433,1712373827389,-282.40052669,0.00033722,4]
[321673434,1712373827414,-379.54210475,0.00033722,4]
[321673435,1712373827438,-1203.87910534,0.00033722,4]
[321673436,1712373827463,-159.95033155,0.00033722,2]
[321673437,1712373827488,-623.77855496,0.00033723,7]
[321673438,1712373827513,-506.7,0.00033723,2]
[321673439,1712373827538,-776.56,0.00033723,2]
[321673440,1712373827565,-500.0,0.00033723,2]
[321673441,1712373827589,-1296.98,0.00033723,2]
[321673442,1712373827613,-500.0,0.00033723,2]
[321673443,1712373827638,-500.0,0.00033723,2]
[321673444,1712373827664,-500.0,0.00033723,2]
[321673445,1712373827691,-536.20991293,0.00033723,2]
[321673446,1712373827717,-500.0,0.00033723,2]
[321673447,1712373827743,-500.0,0.00033723,2]
[321673448,1712373827770,-500.0,0.00033723,2]
[321673449,1712373827798,-500.0,0.00033723,2]
[321673450,1712373827822,-833.86,0.00033723,2]
[321673451,1712373827848,-500.0,0.00033723,2]
[321673452,1712373827874,-500.0,0.00033723,2]
[321673453,1712373827901,-500.0,0.00033723,2]
[321673454,1712373827926,-546.31061624,0.0003376,2]
[321673455,1712373828053,-152.724681,0.0003376,2]
[321673456,1712373828079,-151.0,0.0003376,2]
[321673457,1712373828105,-546.31061624,0.00033897,2]
[321673458,1712373828129,-502.38818792,0.00033996,2]
[321673459,1712373828154,-500.0,0.00033996,2]
[321673460,1712373828178,-500.0,0.00033996,2]
[321673461,1712373828204,-500.0,0.00033996,2]
[321673462,1712373828229,-1047.59,0.00033996,2]
[321673463,1712373828254,-515.40565992,0.00033996,2]
[321673464,1712373828279,-500.0,0.00033996,2]
[321673465,1712373828303,-515.14430349,0.00033996,2]
[321673466,1712373828329,-226.60557917,0.00033997,2]
[321673467,1712373828355,-303.97703765,0.00033997,2]
[321673468,1712373856318,-20000.0,0.00033101,2]
[321673469,1712373858342,-4900.0,0.00033101,2]
[321673470,1712373858372,-7472.41164015,0.0003372,4]
[321673471,1712373858402,-589.96611455,0.00033721,4]
[321673472,1712373858430,-756.48817151,0.00033721,4]
[321673473,1712373858459,-378.01460451,0.00033897,6]
[321673474,1712373858487,-400.0,0.00033996,2]
[321673475,1712373858515,-380.59064514,0.00033996,4]
[321673476,1712373858542,-500.0,0.00033996,2]
[321673477,1712373858570,-741.62296235,0.00033997,2]
[321673478,1712373858598,-500.0,0.00033997,2]
[321673479,1712373858624,-3380.90586179,0.00033997,2]
[321673480,1712373860403,-249.92413821,0.00033997,2]
[321673481,1712373860430,-500.0,0.00033997,2]
[321673482,1712373860455,-3541.14,0.00033997,7]
[321673483,1712373860482,-506.7,0.00033997,2]
[321673484,1712373860508,-776.56,0.00033997,2]
[321673485,1712373860534,-500.0,0.00033997,2]
[321673486,1712373860560,-1296.98,0.00033997,2]
[321673487,1712373860588,-151.0,0.00033997,2]
[321673488,1712373860615,-151.0,0.00033997,2]
[321673489,1712373860643,-227.338022,0.00033997,2]
[321673490,1712373860669,-500.0,0.00033997,2]
[321673491,1712373860695,-500.0,0.00033997,2]
[321673492,1712373860723,-548.38138156,0.00033997,2]
[321673493,1712373860750,-151.0,0.00033997,2]
[321673494,1712373860778,-151.0,0.00033997,2]
[321673495,1712373860803,-151.0,0.00033997,2]
[321673496,1712373860830,-151.0,0.00033997,2]
[321673497,1712373860858,-500.0,0.00033997,2]
[321673498,1712373860884,-151.0,0.00033997,2]
[321673499,1712373860911,-151.0,0.00033997,2]
[321673500,1712373860936,-500.0,0.00033997,2]
[321673501,1712373860962,-500.0,0.00033997,2]
[321673502,1712373860986,-833.86,0.00033997,2]
[321673503,1712373861012,-500.0,0.00033997,2]
[321673504,1712373861038,-500.0,0.00033997,2]
[321673505,1712373861063,-500.0,0.00033997,2]
[321673506,1712373861090,-151.0,0.00033997,2]
[321673507,1712373861115,-151.0,0.00033997,2]
[321673508,1712373861140,-151.0,0.00033997,2]
[321673521,1712374232809,-283.79016332,0.00032385,4]
[321673522,1712374232819,-249.12025821,0.00032386,4]
[321673523,1712374232829,-154.98450155,0.00032386,4]
[321673524,1712374232839,-3463.58453808,0.00032386,4]
[321673525,1712374232848,-223.057829,0.00032387,2]
[321673526,1712374232858,-400.0,0.00033102,2]
[321673527,1712374232867,-400.0,0.00033102,2]
[321673528,1712374232877,-9586.7385495,0.00033103,2]
[321673529,1712374232887,-157.50344,0.0003315,2]
[321673530,1712374232897,-273.89601336,0.00033622,2]
[321673531,1712374232906,-330.76277892,0.00033622,6]
[321673532,1712374232916,-408.0,0.00033722,2]
[321673533,1712374232925,-240.04396945,0.00033722,2]
[321673534,1712374232938,-2455.96603055,0.00033722,2]
[321673535,1712374232947,-530.76059246,0.00033722,2]
[321673536,1712374232957,-627.79,0.00033722,2]
[321673537,1712374232966,-795.31,0.00033722,2]
[321673538,1712374232975,-500.0,0.00033722,2]
[321673539,1712374232985,-500.0,0.00033722,2]
[321673540,1712374232994,-500.0,0.00033722,2]
[321673541,1712374233004,-500.0,0.00033722,2]
[321673542,1712374233015,-430.17337699,0.00033722,2]
[321673543,1712374233028,-69.82662301,0.00033722,2]
[321673544,1712374233038,-491.36355582,0.00033722,2]
[321673545,1712374233047,-500.0,0.00033722,2]
[321673546,1712374233057,-500.0,0.00033722,2]
[321673547,1712374233068,-549.35902328,0.00033722,2]
[321673548,1712374233079,-500.0,0.00033722,2]
[321673549,1712374233089,-500.0,0.00033722,2]
[321673550,1712374233098,-3523.48807134,0.00033722,2]
[321673551,1712374238873,-2389.68425404,0.00033722,2]
[321673579,1712374243964,-2185.79767462,0.00033722,2]
[321673580,1712374243974,-500.0,0.00033722,2]
[321673581,1712374243983,-500.0,0.00033722,2]
[321673582,1712374243993,-273.89601334,0.00033789,2]
[321673583,1712374244003,-152.2647922,0.00033896,2]
[321673584,1712374244013,-273.89601334,0.00033957,2]
[321673585,1712374244023,-500.0,0.00033995,2]
[321673586,1712374244032,-2006.3132832,0.00033995,2]
[321673587,1712374244044,-466.1667168,0.00033995,2]
[321673588,1712374244054,-500.0,0.00033995,2]
[321673589,1712374244065,-500.0,0.00033995,2]
[321673590,1712374244076,-212.2332822,0.00033995,2]
[321673673,1712374246879,-156.73440726,0.00033994,4]
[321673676,1712374246888,-249.87622273,0.00033994,4]
[321673678,1712374246898,-1608.7102987,0.00033994,4]
[321674646,1712374885101,197.642201,0.00031921,120]
[321674653,1712375361669,197.642201,0.00030875,120]
[321674689,1712375438145,-341.51697593,0.00030875,4]
[321674690,1712375438201,-2368.29535693,0.00030875,4]
[321674693,1712375440056,-3830.747031,0.00030649,2]
[321674694,1712375440113,-2556.36687305,0.00030649,2]
[321674733,1712375443115,-9325.46931052,0.00030649,2]
[321674753,1712375446018,-830.6395,0.00030649,2]
[321674754,1712375446029,-422.22153081,0.00030649,2]
[321674755,1712375446076,-970.87276791,0.00030649,2]
[321674756,1712375446087,-3040.39570742,0.00030649,2]
[321674789,1712375635386,-157.14265956,0.00029999,2]
[321674790,1712375635411,-161.73219357,0.0003,2]
[321674791,1712375635563,-6.50765006,0.0003,2]
[321674792,1712375661685,-214.62854168,0.00029648,2]
[321674793,1712375661796,-4.38017432,0.00029648,2]
[321674794,1712375677090,-12000.0,0.0003,4]
[321674795,1712375677186,-12000.0,0.0003,4]
[321674796,1712375677300,-1691.56399073,0.0003,4]
[321674797,1712375678572,-12000.0,0.0002877,2]
[321674798,1712375678682,-12000.0,0.0002877,2]
[321674799,1712375678791,-5435.48097834,0.0002877,2]
[321674800,1712375694487,-2582.82882858,0.0003,4]
[321674801,1712375694622,-52.71079242,0.0003,4]
[321674812,1712375992519,197.642201,0.00030137,120]
[321674813,1712376091064,-173.5845173,0.00029686,2]
[321674814,1712376091090,-149.02205833,0.00029686,2]
[321674815,1712376091169,-6.58380767,0.00029686,2]
[321674816,1712376109371,-1993.0,0.00030055,4]
[321674817,1712376171252,155.86619796,0.00026717,2]
[321674848,1712376309265,16035.38025056,0.00026717,2]
[321674850,1712376329198,-280.0,0.00029909,2]
[321674851,1712376329227,-148.7533712,0.00029921,2]
[321674852,1712376329307,-8.7500688,0.00029921,2]
[321674853,1712376331192,5590.96740001,0.00026717,2]
[321674854,1712376419593,203.34864534,0.00026717,2]
[321674856,1712376527589,-382.41689954,0.00029953,4]
[321674857,1712376527690,-7.80442652,0.00029953,4]
[321674858,1712376561182,-400.0,0.0003003,2]
[321674859,1712376561204,-400.0,0.0003003,2]
[321674860,1712376561224,-5015.19497326,0.0003003,4]
[321674861,1712376561245,-2136.14248989,0.00030031,2]
[321674896,1712376632212,-400.0,0.0003003,2]
[321674897,1712376632221,-400.0,0.0003003,2]
[321674898,1712376632231,-22763.85751011,0.00030031,2]
[321674899,1712376632241,-561.55696504,0.00030053,4]
[321674900,1712376632250,-201.82331273,0.00030142,2]
[321674902,1712376632259,-185.0,0.00030152,2]
[321674903,1712376632269,-219.008716,0.00030223,2]
[321674905,1712376632278,-1191.9826546,0.00030277,2]
[321674906,1712376632287,-164.93017219,0.00030318,2]
[321674907,1712376632296,-211.84599327,0.00030647,4]
[321674908,1712376632305,-164.93017218,0.00030697,2]
[321674909,1712376632315,-164.93017218,0.00031076,2]
[321674910,1712376632325,-169.17282248,0.00031316,2]
[321674911,1712376632334,-169.17282248,0.00031413,2]
[321674912,1712376632343,-164.93017218,0.00031454,2]
[321674913,1712376632353,-169.17282248,0.0003151,2]
[321674914,1712376632362,-169.17282248,0.00031607,2]
[321674915,1712376632371,-169.17282248,0.00031704,2]
[321674916,1712376632380,-169.17282248,0.00031801,2]
[321674917,1712376632389,-164.93017218,0.00031833,2]
[321674918,1712376632399,-3739.19280214,0.00031833,4]
[321674919,1712376632408,-1500.0,0.00031834,2]
[321674920,1712376632417,-500.0,0.00031834,2]
[321674921,1712376632427,-500.0,0.00031834,2]
[321674922,1712376632436,-2369.46,0.00031834,2]
[321674923,1712376632446,-500.0,0.00031834,2]
[321674924,1712376632456,-500.0,0.00031834,2]
[321674925,1712376632465,-500.0,0.00031834,2]
[321674927,1712376632474,-500.0,0.00031834,2]
[321674929,1712376632483,-1501.44,0.00031834,2]
[321674930,1712376632494,-500.0,0.00031834,2]
[321674931,1712376632504,-2848.84,0.00031834,2]
[321674932,1712376632512,-1244.92,0.00031834,2]
[321674933,1712376632521,-2583.68,0.00031834,2]
[321674934,1712376632530,-601.63,0.00031835,2]
[321674935,1712376632538,-500.0,0.00031835,2]
[321674936,1712376632547,-514.22874536,0.00031835,2]
[321674937,1712376632556,-762.17,0.00031835,2]
[321674938,1712376632566,-8267.86,0.00031835,2]
[321674939,1712376632575,-500.0,0.00031835,2]
[321674940,1712376632584,-1250.84,0.00031835,2]
[321674941,1712376632594,-500.0,0.00031835,2]
[321674942,1712376632603,-500.0,0.00031835,2]
[321674943,1712376632613,-500.0,0.00031835,2]
[321674944,1712376632622,-500.0,0.00031835,2]
[321674945,1712376632631,-101.72389811,0.00031835,2]
[321674983,1712376638166,-563.25137648,0.00031834,2]
[321674985,1712376638175,-460.95637272,0.00031834,2]
[321674987,1712376638184,-253.15688201,0.00031834,2]
[321674988,1712376638194,-398.27610189,0.00031835,2]
[321674990,1712376638203,-540.68771897,0.00031835,2]
[321674993,1712376638220,-412.6730841,0.00031835,2]
[321675122,1712376640343,-4059.43052216,0.00031835,2]
[321675138,1712376643481,-686.40867477,0.00031835,2]
[321675139,1712376643490,-80.36612523,0.00031835,2]
[321675140,1712376643505,-419.63387477,0.00031835,2]
[321675141,1712376643514,-500.0,0.00031835,2]
[321675142,1712376643523,-49.65043009,0.00031835,2]
[321675144,1712376646246,-5009.06120089,0.00031834,4]
[321675145,1712376646255,-450.34956991,0.00031835,2]
[321675146,1712376646265,-36082.88,0.00031835,2]
[321675147,1712376646274,-7876.8,0.00031835,2]
[321675148,1712376646283,-500.0,0.00031835,2]
[321675149,1712376646292,-510.96114425,0.00031835,2]
[321675150,1712376646301,-254.82811888,0.00031835,2]
[321675151,1712376685614,197.642201,0.00030834,120]
[321675152,1712377015746,-722.10421334,0.0003024,4]
[321675153,1712377015769,-243.02686363,0.00030241,4]
[321675154,1712377015790,-2591.99651931,0.00030242,4]
[321675155,1712377015813,-154.98450155,0.00030242,4]
[321675156,1712377015834,-1459.5303162,0.00030242,4]
[321675157,1712377015855,-484.43702947,0.00030243,4]
[321675158,1712377015878,-259.09702226,0.00030244,4]
[321675159,1712377015903,-1691.82353424,0.00030244,4]
[321675160,1712377102310,-283.79016332,0.00030233,4]
[321675161,1712377102333,-1165.88716439,0.00030234,4]
[321675162,1712377102354,-2803.93667957,0.00030235,4]
[321675163,1712377102474,-212.77914189,0.00030235,4]
[321675164,1712377102501,-243.02686363,0.00030235,4]
[321675165,1712377102526,-154.98450155,0.00030236,4]
[321675166,1712377102547,-1755.28412944,0.00030236,4]
[321675167,1712377102572,-400.0,0.00030237,2]
[321675168,1712377102593,-400.0,0.00030237,2]
[321675169,1712377102616,-2874.31135621,0.00030238,4]
[321675178,1712377657061,-506.45995456,0.0003,2]